bitfinex/quotes_BTCUSD_20241116
["timestamp","ask_amount","ask_price","bid_price","bid_amount"]
[1731800915569,0.10906255,90414.0,90410.0,0.110606]
[1731800915778,0.10906255,90414.0,90407.0,0.22122]
[1731800915978,0.10906255,90414.0,90410.0,0.110607]
[1731800916314,0.10906255,90414.0,90409.0,0.221216]
[1731800916654,0.10906255,90414.0,90410.0,0.110606]
[1731800917266,0.10906255,90414.0,90411.0,0.110605]
[1731800917438,0.10906255,90414.0,90408.0,0.00165874]
[1731800917658,0.10906255,90414.0,90409.0,0.110607]
[1731800917857,0.10906255,90414.0,90408.0,0.00165874]
[1731800917858,0.10906255,90414.0,90410.0,0.110606]
[1731800918671,0.0449933,90416.0,90410.0,0.221214]
[1731800918898,0.267484,90423.0,90411.0,0.221212]
[1731800919027,0.267484,90423.0,90408.0,0.00165874]
[1731800919028,0.16578524,90415.0,90408.0,0.00165874]
[1731800919235,0.221207,90413.0,90408.0,0.00165874]
[1731800919459,0.110607,90411.0,90408.0,0.00165874]
[1731800919666,0.14532491,90423.0,90408.0,0.00165874]
[1731800919667,0.221194,90418.0,90408.0,0.11226774]
[1731800919902,0.110602,90414.0,90409.0,0.110607]
[1731800920107,0.33025655,90418.0,90409.0,0.110607]
[1731800920108,0.110601,90415.0,90410.0,0.110606]
[1731800920365,0.0017142,90414.0,90410.0,0.110606]
[1731800920814,0.0017142,90414.0,90412.0,0.110604]
[1731800921040,0.0017142,90414.0,90413.0,0.110603]
[1731800923695,0.110596,90419.0,90413.0,0.110603]
[1731800923931,0.09089026,90423.0,90409.0,0.0008571]
[1731800924139,0.33178,90421.0,90412.0,0.110604]
[1731800924376,0.110597,90418.0,90412.0,0.110604]
[1731800924575,0.110597,90418.0,90413.0,0.110603]
[1731800924902,0.110597,90418.0,90414.0,0.110602]
[1731800925186,0.10906255,90421.0,90414.0,0.110602]
[1731800925328,0.10906255,90421.0,90409.0,0.0008571]
[1731800925540,0.221192,90419.0,90409.0,0.0008571]
[1731800925735,0.110597,90418.0,90412.0,0.110604]
[1731800925933,0.110598,90417.0,90412.0,0.110604]
[1731800927199,0.10906255,90421.0,90409.0,0.1114641]
[1731800927432,0.110601,90415.0,90410.0,0.110606]
[1731800927866,0.221192,90419.0,90409.0,0.1114651]
[1731800927867,0.110602,90414.0,90409.0,0.1114651]
[1731800928105,0.110607,90410.0,90409.0,0.0008571]
[1731800931487,0.15543732,90410.0,90409.0,0.0008571]
[1731800933718,1.02787378,90410.0,90409.0,0.0008571]
[1731800933930,0.005,90401.0,90397.0,0.0008575]
[1731800934134,0.23865665,90398.0,90397.0,0.0008575]
[1731800934375,0.59565098,90398.0,90397.0,0.0008575]
[1731800934604,0.7139911,90398.0,90397.0,0.0008575]
[1731800935007,0.7484384,90398.0,90397.0,0.0008575]
[1731800935440,0.7139911,90398.0,90397.0,0.0008575]
[1731800936125,0.7189911,90398.0,90397.0,0.0008575]
[1731800936350,0.96686075,90398.0,90397.0,0.0008575]
[1731800936574,0.9663928,90398.0,90397.0,0.0008575]
[1731800937013,1.01192571,90398.0,90397.0,0.0008575]
[1731800937528,0.76412964,90398.0,90397.0,0.0008575]
[1731800937745,0.79854821,90398.0,90397.0,0.0008575]
[1731800938546,0.79853791,90398.0,90397.0,0.0008575]
[1731800938762,0.65350864,90398.0,90397.0,0.0008575]
[1731800938967,0.76412964,90398.0,90397.0,0.0008575]
[1731800940804,0.7640471,90398.0,90397.0,0.0008575]
[1731800941220,0.39825211,90398.0,90397.0,0.0008575]
[1731800941572,0.54686361,90398.0,90397.0,0.0008575]
[1731800942108,0.54684014,90398.0,90397.0,0.0008575]
[1731800942523,0.27021646,90398.0,90397.0,0.0008575]
[1731800942730,0.39825211,90398.0,90397.0,0.0008575]
[1731800942975,0.408565,90398.0,90397.0,0.0008575]
[1731800943754,0.50758964,90398.0,90397.0,0.0008575]
[1731800943971,0.50759034,90398.0,90397.0,0.0008575]
[1731800944174,0.4085657,90398.0,90397.0,0.0008575]
[1731800944377,0.50758986,90398.0,90397.0,0.0008575]
[1731800944612,0.4085657,90398.0,90397.0,0.0008575]
[1731800945033,0.4102789,90398.0,90397.0,0.0008575]
[1731800945259,0.5152789,90398.0,90397.0,0.0008575]
[1731800947448,0.51527638,90398.0,90397.0,0.0008575]
[1731800947678,0.60929046,90398.0,90397.0,0.0008575]
[1731800947879,0.60929076,90398.0,90397.0,0.0008575]
[1731800948090,0.51027638,90398.0,90397.0,0.0008575]
[1731800948516,0.60929125,90398.0,90397.0,0.0008575]
[1731800948775,0.64849429,90398.0,90397.0,0.0008575]
[1731800948998,0.51027738,90398.0,90397.0,0.0008575]
[1731800950051,0.65880636,90398.0,90397.0,0.0008575]
[1731800950271,0.51027738,90398.0,90397.0,0.0008575]
[1731800950495,0.65880636,90398.0,90397.0,0.0008575]
[1731800950718,0.87573174,90398.0,90397.0,0.0008575]
[1731800951171,0.96314938,90398.0,90391.0,0.0008575]
[1731800951386,0.33768964,90392.0,90391.0,0.0008575]
[1731800951602,0.35803927,90392.0,90391.0,0.0008575]
[1731800951829,0.35803927,90392.0,90382.0,0.0144484]
[1731800951830,0.11064,90383.0,90382.0,0.0103059]
[1731800956845,0.10906255,90391.0,90382.0,0.0103059]
[1731800957055,0.110635,90387.0,90382.0,0.0103059]
[1731800957958,0.15313727,90391.0,90382.0,0.0103059]
[1731800958194,0.110637,90386.0,90382.0,0.0103059]
[1731800960695,0.16578524,90395.0,90383.0,0.0792]
[1731800960935,0.04574578,90394.0,90386.0,0.110636]
[1731800961197,0.27641124,90395.0,90383.0,0.0792]
[1731800961198,0.16578524,90395.0,90383.0,0.0792]
[1731800961427,0.16578524,90395.0,90385.0,0.110637]
[1731800961636,0.110624,90397.0,90385.0,0.221275]
[1731800961865,0.1123352,90398.0,90389.0,0.110631]
[1731800962073,0.110623,90397.0,90389.0,0.110631]
[1731800962282,0.04741865,90398.0,90385.0,0.221275]
[1731800962529,0.0017132,90398.0,90394.0,0.083]
[1731800963198,0.1123352,90398.0,90394.0,0.083]
[1731800963619,0.0017132,90398.0,90394.0,0.083]
[1731800964732,0.110623,90397.0,90394.0,0.083]
[1731800964942,0.0017132,90398.0,90394.0,0.083]
[1731800966000,0.0017132,90398.0,90391.0,0.110629]
[1731800966719,0.0017132,90398.0,90389.0,0.083]
[1731800966720,0.0017132,90398.0,90390.0,0.221263]
[1731800966939,0.0017132,90398.0,90396.0,0.110624]
[1731800967406,0.0017132,90398.0,90397.0,0.110623]
[1731800968778,0.09049844,90405.0,90398.0,0.110621]
[1731800969213,0.09049844,90405.0,90396.0,0.0474]
[1731800969456,0.29382089,90415.0,90401.0,0.110617]
[1731800969665,0.29382089,90415.0,90398.0,0.221241]
[1731800969666,0.110607,90410.0,90402.0,0.110616]
[1731800970326,0.29382089,90415.0,90401.0,0.083]
[1731800970563,0.110602,90414.0,90401.0,0.083]
[1731800970771,0.27638724,90414.0,90406.0,0.110611]
[1731800970964,0.27638724,90414.0,90401.0,0.083]
[1731800971207,0.27638724,90414.0,90407.0,0.11061]
[1731800971208,0.110602,90414.0,90407.0,0.11061]
[1731800971626,0.110602,90414.0,90401.0,0.304236]
[1731800971805,0.04580681,90416.0,90405.0,0.110612]
[1731800972006,0.02183692,90417.0,90401.0,0.304236]
[1731800972007,0.110604,90413.0,90406.0,0.110611]
[1731800972414,0.22008733,90419.0,90406.0,0.110611]
[1731800972633,0.110603,90414.0,90406.0,0.110611]
[1731800972830,0.10906255,90418.0,90401.0,0.304236]
[1731800973047,0.10906255,90418.0,90402.0,0.221234]
[1731800973238,0.10906255,90418.0,90401.0,0.083]
[1731800973239,0.110603,90414.0,90405.0,0.110613]
[1731800973538,0.110603,90414.0,90406.0,0.110611]
[1731800973884,0.110603,90414.0,90407.0,0.11061]
[1731800974569,0.10906255,90418.0,90401.0,0.083]
[1731800974795,0.21966055,90418.0,90401.0,0.083]
[1731800974972,0.1106,90416.0,90409.0,0.110607]
[1731800975615,0.110601,90415.0,90409.0,0.110607]
[1731800976264,0.00502853,90414.0,90409.0,0.110607]
[1731800976493,0.110601,90415.0,90407.0,0.11061]
[1731800976916,0.19465523,90415.0,90408.0,0.110609]
[1731800977122,0.110602,90414.0,90408.0,0.110609]
[1731800977326,0.30525823,90415.0,90406.0,0.110611]
[1731800977747,0.19465523,90415.0,90408.0,0.110609]
[1731800977970,0.08405423,90410.0,90408.0,0.110609]
[1731800978189,0.08405423,90410.0,90407.0,0.110609]
[1731800979028,0.08405423,90410.0,90403.0,0.221231]
[1731800979317,0.08405423,90410.0,90408.0,0.110608]
[1731800979769,0.08405423,90410.0,90402.0,0.221234]
[1731800980190,0.08405423,90410.0,90401.0,0.0847128]
[1731800980401,0.08405423,90410.0,90403.0,0.221231]
[1731800980628,0.08405423,90410.0,90401.0,0.0847128]
[1731800980842,0.08405423,90410.0,90406.0,0.110611]
[1731800982562,0.08405423,90410.0,90402.0,0.221234]
[1731800982768,0.08405423,90410.0,90405.0,0.110613]
[1731800983580,0.00705423,90410.0,90405.0,0.110613]
[1731800984424,0.00705423,90410.0,90404.0,0.110614]
[1731800985711,0.00705423,90410.0,90406.0,0.110612]
[1731800986824,0.00705423,90410.0,90403.0,0.221231]
[1731800986825,0.00705423,90410.0,90404.0,0.110613]
[1731800987072,0.00705423,90410.0,90405.0,0.110613]
[1731800987727,0.00705423,90410.0,90404.0,0.110614]
[1731800992373,0.11061,90407.0,90401.0,0.0017128]
[1731800992574,0.00705423,90410.0,90402.0,0.110616]
[1731800992575,0.110609,90409.0,90402.0,0.110616]
[1731800992988,0.00705423,90410.0,90401.0,0.0017128]
[1731800993194,0.03726043,90408.0,90403.0,0.110615]
[1731800993621,0.01656019,90407.0,90403.0,0.110615]
[1731800993844,0.01656019,90406.0,90403.0,0.110615]
[1731800994056,0.02691031,90405.0,90403.0,0.110615]
[1731800994268,0.02691031,90404.0,90403.0,0.110615]
[1731800996929,0.02692903,90404.0,90403.0,0.110615]
[1731800998659,0.09449957,90411.0,90403.0,0.110615]
[1731800999106,0.09449957,90411.0,90404.0,0.110614]
[1731800999528,0.38699024,90414.0,90401.0,0.0017128]
[1731800999529,0.16578524,90414.0,90401.0,0.0017128]
[1731800999731,0.110604,90412.0,90402.0,0.110617]
[1731800999953,0.27638724,90414.0,90406.0,0.110611]
[1731801000166,0.110605,90412.0,90404.0,0.110614]
[1731801000381,0.09889036,90415.0,90413.0,0.110603]
[1731801000586,0.09889036,90416.0,90412.0,0.110603]
[1731801000793,0.0008564,90417.0,90416.0,0.110599]
[1731801001044,0.16578524,90415.0,90411.0,0.077]
[1731801001231,0.0008564,90417.0,90405.0,0.077]
[1731801001454,0.0008564,90417.0,90414.0,0.110602]
[1731801002361,0.0008564,90417.0,90412.0,0.221209]
[1731801002570,0.0008564,90417.0,90414.0,0.110601]
[1731801003254,0.0008564,90417.0,90405.0,0.077]
[1731801003462,0.0008564,90417.0,90416.0,0.110599]
[1731801004375,0.0008564,90417.0,90416.0,0.193199]
[1731801004637,0.0008564,90417.0,90416.0,0.43531578]
[1731801004907,0.0008564,90417.0,90416.0,0.46831578]
[1731801005134,0.0017126,90422.0,90421.0,0.35924723]
[1731801005347,0.0017126,90422.0,90421.0,0.46830978]
[1731801005799,0.0017126,90422.0,90421.0,0.47030978]
[1731801006009,0.0172502,90423.0,90422.0,0.18178946]
[1731801006269,0.0172502,90423.0,90422.0,0.38625455]
[1731801006480,0.0017144,90428.0,90427.0,0.122586]
[1731801006760,0.0017144,90428.0,90427.0,0.46361399]
[1731801006993,0.0017144,90428.0,90427.0,0.50526513]
[1731801007224,4e-07,90428.0,90427.0,0.50526513]
[1731801007684,0.0017138,90431.0,90430.0,0.252182]
[1731801007905,0.0017138,90431.0,90430.0,0.38424455]
[1731801008345,0.0017146,90487.0,90471.0,0.16578524]
[1731801008577,0.0017146,90487.0,90453.0,0.17078524]
[1731801008578,0.0017146,90487.0,90481.0,0.12791658]
[1731801008827,0.0017146,90487.0,90480.0,0.145121]
[1731801008828,0.0017146,90487.0,90486.0,0.145514]
[1731801009037,0.0017146,90487.0,90486.0,0.14772365]
[1731801009285,0.0017142,90496.0,90495.0,0.143503]
[1731801009525,0.0017142,90496.0,90495.0,0.31385047]
[1731801009736,0.000142,90502.0,90501.0,0.012]
[1731801009954,0.000142,90502.0,90501.0,0.18392675]
[1731801010200,0.000142,90502.0,90501.0,0.29363255]
[1731801010433,0.000142,90502.0,90501.0,0.25255855]
[1731801010667,0.000142,90502.0,90501.0,0.25676764]
[1731801010890,0.0017142,90506.0,90504.0,0.122492]
[1731801011125,0.0017142,90506.0,90504.0,0.38468016]
[1731801011332,0.0017142,90506.0,90504.0,0.42069254]
[1731801011817,6e-07,90505.0,90504.0,0.42069254]
[1731801012030,6e-07,90505.0,90504.0,0.47969238]
[1731801012242,1e-07,90508.0,90507.0,0.012]
[1731801012453,0.005,90575.0,90532.0,0.120458]
[1731801012683,0.110409,90572.0,90532.0,0.35743713]
[1731801012902,0.005,90575.0,90551.0,0.110435]
[1731801013153,0.110409,90572.0,90551.0,0.110435]
[1731801013382,0.005,90575.0,90562.0,0.110421]
[1731801013620,0.13808524,90567.0,90539.0,0.16799372]
[1731801013836,0.110406,90575.0,90565.0,0.110417]
[1731801014052,0.17078524,90576.0,90565.0,0.110417]
[1731801014053,0.21946955,90574.0,90565.0,0.110417]
[1731801014299,0.12791658,90569.0,90538.0,0.005]
[1731801014538,0.16578524,90575.0,90549.0,0.16578524]
[1731801014539,0.12791658,90555.0,90549.0,0.16578524]
[1731801015000,0.11043,90555.0,90549.0,0.16578524]
[1731801015212,0.12791658,90569.0,90550.0,0.220872]
[1731801015433,0.12791658,90569.0,90549.0,0.16578524]
[1731801015434,0.110416,90566.0,90557.0,0.110427]
[1731801015663,0.110416,90566.0,90549.0,0.16578524]
[1731801015664,0.230812,90575.0,90549.0,0.16578524]
[1731801015900,0.220823,90570.0,90552.0,0.220867]
[1731801016109,0.220823,90570.0,90549.0,0.16578524]
[1731801016110,0.110418,90565.0,90557.0,0.110427]
[1731801016346,0.12791658,90563.0,90549.0,0.16578524]
[1731801016645,0.12791658,90563.0,90536.0,0.005]
[1731801016646,0.32990555,90562.0,90550.0,0.16578524]
[1731801016861,0.220848,90560.0,90550.0,0.16578524]
[1731801017070,0.110432,90553.0,90535.0,0.005]
[1731801017276,0.110431,90555.0,90550.0,0.16578524]
[1731801017488,0.110427,90557.0,90549.0,0.110436]
[1731801017712,0.110427,90557.0,90454.0,0.1478256]
[1731801017713,0.12791658,90571.0,90550.0,0.16578524]
[1731801017945,0.26578524,90573.0,90550.0,0.16578524]
[1731801018201,0.37619324,90573.0,90564.0,0.110417]
[1731801018376,0.10906255,90572.0,90564.0,0.110418]
[1731801018608,0.10906255,90572.0,90558.0,0.220852]
[1731801018609,0.110412,90570.0,90561.0,0.110422]
[1731801018813,0.10906255,90569.0,90549.0,0.16578524]
[1731801019046,0.21947555,90569.0,90561.0,0.110421]
[1731801019248,0.110415,90567.0,90559.0,0.110424]
[1731801019472,0.110415,90567.0,90553.0,0.220865]
[1731801019473,0.10906255,90569.0,90561.0,0.16578524]
[1731801019715,0.0831,90577.0,90576.0,0.110404]
[1731801019931,0.0008563,90578.0,90574.0,0.220812]
[1731801020138,0.0008563,90578.0,90577.0,0.110403]
[1731801020367,0.0008563,90578.0,90561.0,0.16578524]
[1731801020591,0.110406,90575.0,90562.0,0.220843]
[1731801020823,0.110413,90569.0,90561.0,0.16578524]
[1731801021054,0.22083,90568.0,90543.0,0.005]
[1731801021267,0.12791658,90574.0,90543.0,0.005]
[1731801021268,0.110418,90565.0,90562.0,0.16578524]
[1731801021508,0.12791658,90574.0,90546.0,0.005]
[1731801021509,0.220818,90572.0,90546.0,0.005]
[1731801021725,0.110417,90566.0,90559.0,0.110424]
[1731801021960,0.12791658,90574.0,90546.0,0.225879]
[1731801021961,0.16578524,90573.0,90552.0,0.220867]
[1731801022219,0.005,90577.0,90549.0,0.27622224]
[1731801022220,0.110431,90554.0,90549.0,0.27622224]
[1731801022428,0.110429,90556.0,90549.0,0.27622224]
[1731801022634,0.0805,90565.0,90549.0,0.110437]
[1731801022635,0.110431,90555.0,90549.0,0.110437]
[1731801022845,0.0805,90565.0,90531.0,0.005]
[1731801022846,0.110439,90548.0,90538.0,0.220901]
[1731801023050,0.110439,90548.0,90541.0,0.110446]
[1731801023275,0.110439,90548.0,90538.0,0.220901]
[1731801023508,0.12791658,90558.0,90531.0,0.005]
[1731801023713,0.110437,90550.0,90543.0,0.110443]
[1731801023943,0.220868,90552.0,90536.0,0.220904]
[1731801024162,0.11043,90555.0,90539.0,0.16578524]
[1731801024438,0.110437,90549.0,90542.0,0.110444]
[1731801024658,0.110439,90547.0,90542.0,0.110444]
[1731801025090,0.110437,90549.0,90543.0,0.110443]
[1731801025305,0.12791658,90548.0,90529.0,0.16578524]
[1731801025520,0.110448,90540.0,90532.0,0.110456]
[1731801025748,0.110451,90538.0,90532.0,0.110456]
[1731801026013,0.110451,90538.0,90533.0,0.110456]
[1731801026228,0.110451,90538.0,90530.0,0.220921]
[1731801026229,0.110453,90536.0,90530.0,0.110459]
[1731801026435,0.110451,90538.0,90529.0,0.16578524]
[1731801026646,0.23697913,90548.0,90529.0,0.16578524]
[1731801026647,0.110453,90537.0,90531.0,0.110459]
[1731801026858,0.110453,90537.0,90532.0,0.110457]
[1731801027500,0.220882,90546.0,90532.0,0.220915]
[1731801027719,0.110452,90537.0,90531.0,0.110459]
[1731801028607,0.110452,90537.0,90527.0,0.16578524]
[1731801028608,0.220902,90538.0,90528.0,0.220926]
[1731801028827,0.2217354,90547.0,90524.0,0.00165641]
[1731801028828,0.110466,90525.0,90524.0,0.00165641]
[1731801029476,0.220921,90531.0,90524.0,0.11212341]
[1731801029706,0.41036655,90537.0,90524.0,0.11212341]
[1731801029707,0.0754,90537.0,90524.0,0.00165641]
[1731801030186,0.0754,90537.0,90533.0,0.110456]
[1731801030398,0.0754,90537.0,90531.0,0.220918]
[1731801030399,0.0754,90537.0,90536.0,0.110453]
[1731801030640,0.0754,90537.0,90524.0,0.00165641]
[1731801030641,0.110438,90549.0,90544.0,0.110442]
[1731801030892,0.110438,90549.0,90525.0,0.220933]
[1731801030893,0.220873,90550.0,90542.0,0.110445]
[1731801031120,0.220873,90550.0,90533.0,0.16578524]
[1731801031571,0.110439,90548.0,90533.0,0.16578524]
[1731801031776,0.110441,90546.0,90535.0,0.220909]
[1731801032060,0.220873,90550.0,90539.0,0.110448]
[1731801032061,0.110442,90545.0,90539.0,0.110448]
[1731801032524,0.220873,90550.0,90537.0,0.220904]
[1731801032760,0.220873,90550.0,90533.0,0.16578524]
[1731801032978,0.1112964,90547.0,90541.0,0.110446]
[1731801033646,0.110442,90546.0,90541.0,0.110446]
[1731801033887,0.110442,90545.0,90539.0,0.110449]
[1731801034095,0.110442,90545.0,90535.0,0.220907]
[1731801034320,0.110442,90545.0,90533.0,0.16578524]
[1731801034321,0.01021766,90544.0,90534.0,0.220911]
[1731801034533,0.0008564,90547.0,90543.0,0.110444]
[1731801034773,0.01023763,90546.0,90519.0,0.005]
[1731801035010,0.01023763,90546.0,90506.0,0.35089558]
[1731801035011,0.110458,90532.0,90530.0,0.16578524]
[1731801035437,0.220912,90534.0,90528.0,0.110462]
[1731801035438,0.01023763,90531.0,90528.0,0.110462]
[1731801035663,0.01023763,90530.0,90529.0,0.110461]
[1731801036301,0.01023763,90538.0,90525.0,0.220933]
[1731801036523,0.0102666,90537.0,90526.0,0.110465]
[1731801036734,0.1254108,90538.0,90520.0,0.38672824]
[1731801036735,0.220909,90535.0,90520.0,0.38672824]
[1731801036942,0.110456,90533.0,90526.0,0.110464]
[1731801037196,0.110456,90533.0,90528.0,0.110462]
[1731801037197,0.0102666,90532.0,90528.0,0.110462]
[1731801037399,0.0102666,90531.0,90528.0,0.110462]
[1731801037602,0.02661485,90530.0,90528.0,0.110462]
[1731801037813,0.110456,90533.0,90528.0,0.110462]
[1731801037814,0.02661485,90529.0,90528.0,0.110462]
[1731801038024,0.110466,90525.0,90524.0,0.00165641]
[1731801038245,0.12681425,90525.0,90524.0,0.00165641]
[1731801038466,0.13708085,90525.0,90524.0,0.00165641]
[1731801038679,0.02661485,90525.0,90524.0,0.00165641]
[1731801039104,0.02661485,90525.0,90523.0,0.110469]
[1731801039311,0.0754,90527.0,90522.0,0.11047]
[1731801039312,0.02661485,90524.0,90522.0,0.11047]
[1731801039525,0.02661485,90523.0,90522.0,0.11047]
[1731801039767,0.02661485,90523.0,90520.0,0.110471]
[1731801039972,0.110466,90526.0,90519.0,0.220948]
[1731801039973,0.02661485,90522.0,90519.0,0.220948]
[1731801040195,0.02661485,90521.0,90520.0,0.110472]
[1731801040837,0.02678985,90521.0,90520.0,0.110472]
[1731801043697,0.02678985,90521.0,90519.0,0.220948]
[1731801043698,0.01648074,90526.0,90519.0,0.220948]
[1731801043927,0.02518985,90527.0,90519.0,0.220948]
[1731801044132,0.02518985,90527.0,90523.0,0.110468]
[1731801044343,0.02518985,90527.0,90524.0,0.110467]
[1731801045222,0.02518985,90527.0,90525.0,0.110466]
[1731801045432,0.02518985,90527.0,90506.0,0.005]
[1731801045433,0.02518985,90527.0,90526.0,0.110465]
[1731801048468,0.02518985,90527.0,90516.0,0.16578524]
[1731801048913,0.13565485,90527.0,90523.0,0.110468]
[1731801049147,0.02518985,90527.0,90525.0,0.110466]
[1731801049362,0.02518985,90527.0,90521.0,0.220943]
[1731801049363,0.02518985,90527.0,90526.0,0.110465]
[1731801050693,0.02518985,90527.0,90526.0,0.1121756]
[1731801051426,0.110458,90533.0,90527.0,0.110463]
[1731801051630,0.0788,90534.0,90527.0,0.110463]
[1731801051631,0.110458,90532.0,90527.0,0.110463]
[1731801052061,0.18786255,90534.0,90526.0,0.0017106]
[1731801052062,0.110457,90533.0,90528.0,0.110462]
[1731801052287,0.110458,90532.0,90526.0,0.1121756]
[1731801052506,0.110458,90532.0,90526.0,0.0017106]
[1731801053135,0.110458,90532.0,90528.0,0.110462]
[1731801053352,0.18786255,90534.0,90526.0,0.0017106]
[1731801053558,0.18786255,90534.0,90528.0,0.110462]
[1731801053559,0.110457,90533.0,90528.0,0.110462]
[1731801053770,0.03435122,90532.0,90528.0,0.110462]
[1731801054205,0.18786255,90534.0,90529.0,0.110461]
[1731801054206,0.29831855,90534.0,90529.0,0.110461]
[1731801054410,0.03435657,90533.0,90528.0,0.220926]
[1731801054647,0.03435657,90533.0,90526.0,0.0017106]
[1731801054648,0.18786255,90534.0,90529.0,0.110461]
[1731801054891,0.110456,90533.0,90529.0,0.110461]
[1731801055121,0.14481681,90532.0,90527.0,0.110464]
[1731801055342,0.110458,90532.0,90527.0,0.110464]
[1731801055558,0.03438775,90531.0,90528.0,0.110462]
[1731801055765,0.01033128,90530.0,90528.0,0.110462]
[1731801055976,0.01033128,90529.0,90528.0,0.110462]
[1731801058790,0.110446,90542.0,90537.0,0.110451]
[1731801059026,0.21950855,90542.0,90538.0,0.11045]
[1731801059254,0.10906255,90542.0,90538.0,0.11045]
[1731801059467,0.21950855,90542.0,90536.0,0.110452]
[1731801059906,0.10906255,90542.0,90536.0,0.110452]
[1731801060131,0.110447,90541.0,90536.0,0.110452]
[1731801060355,0.10906255,90542.0,90537.0,0.110452]
[1731801060661,0.32995555,90542.0,90528.0,0.16578524]
[1731801060865,0.110456,90533.0,90532.0,0.16578524]
[1731801061109,0.110456,90533.0,90526.0,0.0017106]
[1731801061110,0.110464,90527.0,90526.0,0.0017106]
[1731801064568,0.110464,90527.0,90516.0,0.16578524]
[1731801064785,0.110464,90527.0,90521.0,0.110471]
[1731801065036,0.110465,90526.0,90518.0,0.22095]
[1731801065259,0.27484779,90532.0,90515.0,0.16578524]
[1731801065465,0.27484779,90532.0,90487.0,0.14836035]
[1731801065466,0.110483,90511.0,90510.0,0.00165671]
[1731801065682,0.110478,90515.0,90514.0,0.16578524]
[1731801065923,0.12791658,90520.0,90510.0,0.00165671]
[1731801065924,0.110481,90514.0,90510.0,0.00165671]
[1731801066137,0.110481,90513.0,90510.0,0.00165671]
[1731801066606,0.11048,90515.0,90510.0,0.00165671]
[1731801066859,0.110478,90516.0,90510.0,0.11214071]
[1731801067094,0.220951,90518.0,90510.0,0.00165671]
[1731801067323,0.110479,90515.0,90510.0,0.00165671]
[1731801068002,0.110476,90517.0,90510.0,0.11213971]
[1731801068274,0.110479,90515.0,90510.0,0.00165671]
[1731801068490,0.110482,90512.0,90510.0,0.00165671]
[1731801068701,0.110483,90511.0,90510.0,0.00165671]
[1731801068924,0.110482,90513.0,90510.0,0.00165671]
[1731801070011,0.110482,90512.0,90510.0,0.00165671]
[1731801070664,0.01032915,90511.0,90510.0,0.00165671]
[1731801071971,0.12081215,90511.0,90510.0,0.00165671]
[1731801072217,0.110483,90511.0,90510.0,0.00165671]
[1731801072902,0.21954555,90511.0,90510.0,0.00165671]
[1731801073158,0.3085747,90511.0,90510.0,0.00165671]
[1731801073389,0.3545747,90511.0,90510.0,0.00165671]
[1731801073620,0.2775747,90511.0,90510.0,0.00165671]
[1731801073864,0.3545747,90511.0,90510.0,0.00165671]
[1731801074329,0.3545747,90511.0,90510.0,0.00336731]
[1731801075320,0.59249128,90511.0,90510.0,0.0017106]
[1731801075552,0.66400711,90511.0,90510.0,0.0017106]
[1731801075764,0.5155028,90511.0,90510.0,0.0017106]
[1731801077078,0.64341938,90511.0,90510.0,0.0017106]
[1731801077326,0.5155028,90511.0,90510.0,0.0017106]
[1731801077991,0.53749718,90511.0,90510.0,0.0017106]
[1731801078655,0.63640782,90511.0,90510.0,0.0017106]
[1731801079098,0.53749718,90511.0,90510.0,0.0017106]
[1731801079305,0.63637356,90511.0,90510.0,0.0017106]
[1731801079938,0.53749718,90511.0,90510.0,0.0017106]
[1731801080169,0.63637356,90511.0,90510.0,0.0017106]
[1731801080388,0.53749718,90511.0,90510.0,0.0017106]
[1731801080606,0.66541376,90511.0,90510.0,0.0017106]
[1731801080831,0.66541376,90511.0,90491.0,0.16578524]
[1731801080832,0.23842358,90492.0,90491.0,0.16578524]
[1731801081080,0.34748613,90492.0,90491.0,0.16578524]
[1731801081319,0.35234055,90492.0,90491.0,0.16578524]
[1731801081557,0.110519,90482.0,90481.0,0.16578524]
[1731801081997,0.110522,90480.0,90475.0,0.16578524]
[1731801082470,0.00485417,90479.0,90474.0,0.110528]
[1731801082945,0.11537717,90479.0,90473.0,0.11053]
[1731801084061,0.110524,90478.0,90473.0,0.11053]
[1731801084273,0.00485415,90478.0,90473.0,0.11053]
[1731801084501,0.00485415,90478.0,90472.0,0.331593]
[1731801084714,0.110523,90479.0,90474.0,0.110528]
[1731801084932,0.00485413,90477.0,90474.0,0.110528]
[1731801085596,0.00485413,90477.0,90468.0,0.221071]
[1731801085820,0.00485413,90477.0,90473.0,0.110529]
[1731801086053,0.00723688,90477.0,90470.0,0.221067]
[1731801086261,0.221044,90480.0,90468.0,0.221071]
[1731801086501,0.221044,90480.0,90473.0,0.110529]
[1731801086741,0.110524,90478.0,90474.0,0.0017134]
[1731801087153,0.00723692,90477.0,90474.0,0.0017134]
[1731801087594,0.00723692,90477.0,90475.0,0.110526]
[1731801087807,0.110522,90480.0,90475.0,0.110526]
[1731801088028,0.221035,90483.0,90474.0,0.0017134]
[1731801088241,0.10906255,90485.0,90474.0,0.0017134]
[1731801088451,0.110522,90480.0,90475.0,0.110527]
[1731801088667,0.221035,90483.0,90475.0,0.110527]
[1731801088879,0.110522,90479.0,90475.0,0.110527]
[1731801089600,0.110522,90479.0,90474.0,0.0017134]
[1731801089822,0.110522,90479.0,90474.0,0.1122414]
[1731801090917,0.110521,90481.0,90474.0,0.0017134]
[1731801091125,0.110521,90480.0,90474.0,0.1122414]
[1731801091590,0.110521,90480.0,90475.0,0.110527]
[1731801093718,0.110523,90479.0,90474.0,0.0017134]
[1731801093958,0.01029573,90482.0,90474.0,0.0017134]
[1731801094246,0.110521,90480.0,90475.0,0.110527]
[1731801096319,0.110522,90479.0,90475.0,0.110527]
[1731801096812,0.01030162,90482.0,90475.0,0.221055]
[1731801097039,0.221035,90484.0,90474.0,0.0017134]
[1731801097040,0.11052,90481.0,90476.0,0.110525]
[1731801097494,0.110521,90480.0,90476.0,0.110525]
[1731801098837,0.110521,90480.0,90475.0,0.110527]
[1731801099063,0.110522,90480.0,90474.0,0.0017134]
[1731801099484,0.000857,90480.0,90474.0,0.0017134]
[1731801099750,0.111378,90480.0,90475.0,0.110527]
[1731801100442,0.01031851,90479.0,90475.0,0.110527]
[1731801100672,0.01031851,90478.0,90475.0,0.110527]
[1731801100898,0.01031851,90479.0,90476.0,0.110526]
[1731801101345,0.01031851,90478.0,90476.0,0.110526]
[1731801101579,0.111378,90480.0,90476.0,0.110526]